bitfinex-derivatives/quotes_SOLF0:USTF0_20260121
["timestamp","ask_amount","ask_price","bid_price","bid_amount"]
[1769026426245,24.3600386,131.1,131.01,11.32415766]
[1769026426440,6.8716,131.09,130.98,118.18827349]
[1769026426647,24.3600386,131.08,130.99,118.15900065]
[1769026426849,24.3600386,131.08,131.01,6.8753]
[1769026427352,24.3600386,131.08,130.99,18.06730065]
[1769026427647,24.3600386,131.04,130.92,11.16740316]
[1769026427944,24.3600386,131.0,130.89,11.16740316]
[1769026428149,24.3600386,131.0,130.87,107.0616]
[1769026428150,24.3600386,130.99,130.87,107.0616]
[1769026428655,24.3600386,130.97,130.89,6.8816]
[1769026429247,24.3600386,130.97,130.84,107.0875]
[1769026429248,24.3600386,130.96,130.84,107.0875]
[1769026429447,24.3600386,130.93,130.81,107.1124]
[1769026429749,24.3600386,130.93,130.83,6.8849]
[1769026429957,24.3600386,130.93,130.85,118.20372163]
[1769026430152,24.3600386,130.93,130.85,11.12082163]
[1769026430855,24.3600386,130.93,130.86,6.8831]
[1769026431453,24.3600386,130.93,130.81,107.1124]
[1769026431656,24.3600386,130.93,130.84,107.0912]
[1769026431847,106.989,130.97,130.84,107.0912]
[1769026431848,24.3600386,130.96,130.85,118.15310401]
[1769026432757,24.3600386,130.96,130.87,6.8826]
[1769026433453,24.3600386,130.95,130.87,6.8826]
[1769026434853,24.3600386,130.95,130.86,118.08166944]
[1769026435153,24.3600386,130.95,130.87,6.8826]
[1769026435350,24.3600386,130.95,130.84,107.0912]
[1769026435554,24.3600386,130.95,130.85,107.0797]
[1769026435955,24.3600386,130.95,130.86,118.06136391]
[1769026436257,24.3600386,130.95,130.84,118.07856391]
[1769026436558,24.3600386,130.94,130.84,124.96276391]
[1769026436755,24.3600386,130.93,130.81,10.96600653]
[1769026437347,24.3600386,130.92,130.82,6.8853]
[1769026437960,24.3600386,130.92,130.8,107.1196]
[1769026437961,24.3600386,130.9,130.8,6.8862]
[1769026438148,24.3600386,130.9,130.8,107.1223]
[1769026438455,24.3600386,130.87,130.79,6.8868]
[1769026438750,24.3600386,130.87,130.78,107.1386]
[1769026439753,24.3600386,130.87,130.8,107.1242]
[1769026439954,24.57141517,130.9,130.81,118.04272599]
[1769026440257,24.57141517,130.9,130.84,6.8841]
[1769026440658,130.28168258,130.96,130.84,107.091]
[1769026440659,24.57141517,130.93,130.84,107.091]
[1769026441457,24.57141517,130.93,130.85,6.8836]
[1769026442561,24.57141517,130.92,130.8,10.88740554]
[1769026442852,24.57141517,130.92,130.77,107.1434]
[1769026442853,6.883,130.87,130.77,10.86769027]
[1769026443160,24.57141517,130.86,130.77,10.86769027]
[1769026443355,24.57141517,130.86,130.79,6.8867]
[1769026443852,24.57141517,130.86,130.77,118.01269027]
[1769026444156,24.57141517,130.89,130.79,107.1294]
[1769026444549,24.57141517,130.89,130.81,6.8858]
[1769026446058,24.57141517,130.88,130.81,6.8858]
[1769026447061,24.57141517,130.87,130.79,6.8867]
[1769026447457,24.57141517,130.87,130.75,107.1606]
[1769026447864,24.57141517,130.85,130.78,6.8873]
[1769026448469,24.57141517,130.85,130.79,6.8869]
[1769026449863,24.57141517,130.89,130.8,6.8864]
[1769026450065,24.57141517,130.88,130.79,117.86638034]
[1769026450268,24.57141517,130.88,130.82,6.8854]
[1769026450460,24.57141517,130.91,130.81,117.84918034]
[1769026450654,24.57141517,130.91,130.83,107.0988]
[1769026450861,24.57141517,130.91,130.85,6.8838]
[1769026452365,31.45081517,130.94,130.86,6.8833]
[1769026452961,31.45081517,130.94,130.83,107.0962]
[1769026452962,24.57141517,130.94,130.87,6.8825]
[1769026454369,24.57141517,130.94,130.88,6.8822]
[1769026455071,24.57141517,130.94,130.84,117.77177277]
[1769026455072,24.57141517,130.94,130.86,6.8829]
[1769026456265,32.3283623,130.93,130.86,6.8829]
[1769026456475,32.3283623,130.93,130.84,17.56657277]
[1769026456774,25.4485623,130.92,130.84,10.68257277]
[1769026457881,25.4485623,130.92,130.85,6.8837]
[1769026458979,25.4485623,130.91,130.85,6.8837]
[1769026460985,6.8798,130.93,130.85,6.8837]
[1769026461186,6.8798,130.93,130.86,6.8833]
[1769026461781,25.4485623,130.94,130.86,10.50927065]
[1769026462986,25.4485623,130.94,130.88,6.8822]
[1769026464385,25.4485623,130.94,130.86,10.50927065]
[1769026464886,32.3282623,130.93,130.87,6.8828]
[1769026465083,25.4485623,130.92,130.83,10.46340425]
[1769026465691,25.4485623,130.92,130.86,6.8834]
[1769026465892,25.4485623,130.92,130.84,117.53776532]
[1769026466092,25.4485623,130.95,130.85,10.44846532]
[1769026466284,25.4485623,130.95,130.86,10.44846532]
[1769026467279,32.3272623,130.95,130.89,6.8816]
[1769026467479,25.4485623,130.94,130.86,10.44846532]
[1769026468886,25.4485623,130.94,130.88,6.8822]
[1769026469394,25.4485623,130.94,130.86,117.51996532]
[1769026470293,25.4485623,130.94,130.89,6.8817]
[1769026470686,25.4485623,130.97,130.87,117.44070538]
[1769026470886,32.3261623,130.97,130.9,6.881]
[1769026471083,25.4485623,130.97,130.89,10.37630538]
[1769026472189,25.4485623,130.97,130.92,6.8802]
[1769026472794,25.4485623,130.96,130.9,6.8812]
[1769026473095,23.43874371,130.99,130.87,107.0644]
[1769026473096,25.4485623,130.99,130.89,117.39628844]
[1769026473297,25.4485623,131.02,130.92,10.34858844]
[1769026474991,120.11849422,131.04,130.92,10.34858844]
[1769026474992,25.4485623,131.01,130.93,10.32150455]
[1769026476491,25.4485623,131.0,130.93,10.32150455]
[1769026476892,25.4485623,131.0,130.92,107.0211]
[1769026476893,25.4485623,131.0,130.91,107.0343]
[1769026477491,25.4485623,131.0,130.92,10.29503926]
[1769026477895,32.3245623,131.0,130.93,6.8796]
[1769026478888,25.4485623,130.99,130.91,10.26917844]
[1769026479192,25.4485623,131.01,130.91,117.30217844]
[1769026479794,25.4485623,130.99,130.93,6.8792]
[1769026481800,25.4485623,130.98,130.87,107.0639]
[1769026482000,25.4485623,130.98,130.87,117.29539047]
[1769026482899,32.3262623,130.97,130.9,6.8812]
[1769026483099,25.4485623,130.96,130.9,6.8812]
[1769026483502,25.4485623,130.96,130.88,107.0565]
[1769026483806,25.4485623,130.96,130.88,117.2635811]
[1769026484504,25.4485623,130.99,130.92,6.8801]
[1769026484810,25.4485623,130.99,130.91,10.19508629]
[1769026485013,25.4485623,130.99,130.94,6.879]
[1769026485304,25.4485623,131.02,130.93,117.20978629]
[1769026485503,25.4485623,131.02,130.94,10.19508629]
[1769026486806,32.3236623,131.02,130.94,10.19508629]
[1769026487408,23.23757301,131.01,130.94,10.19508629]
[1769026487709,23.23757301,131.01,130.96,6.8781]
[1769026488711,23.23757301,131.01,130.92,107.0224]
[1769026489510,23.23757301,131.01,130.96,6.8781]
[1769026490114,23.23757301,131.01,130.94,6.8789]
[1769026491009,23.23757301,131.01,130.95,6.8786]
[1769026491010,30.11307301,131.01,130.95,6.8786]
[1769026491209,23.23757301,131.01,130.95,6.8786]
[1769026496614,23.23757301,131.0,130.93,6.8792]
[1769026496816,23.23757301,131.0,130.91,117.13966847]
[1769026497913,23.23757301,131.0,130.94,6.8789]
[1769026498311,23.23757301,131.0,130.91,117.13966847]
[1769026498312,23.23757301,130.99,130.88,10.03431443]
[1769026498516,23.23757301,130.99,130.91,6.8807]
[1769026499423,29.95107115,130.98,130.91,6.8807]
[1769026500028,23.07397115,130.97,130.91,6.8807]
[1769026500225,23.07397115,131.0,130.91,10.02948113]
[1769026500424,23.07397115,131.0,130.92,10.02948113]
[1769026500817,23.07397115,130.99,130.9,107.0427]
[1769026501223,23.07397115,130.99,130.86,10.01973476]
[1769026501426,23.07397115,130.93,130.86,6.8829]
[1769026501728,23.07397115,130.93,130.83,117.11903476]
[1769026502319,23.07397115,130.93,130.85,107.0836]
[1769026502533,23.07397115,130.93,130.86,107.0743]
[1769026503129,23.07397115,130.96,130.87,117.06657658]
[1769026503719,23.07397115,130.96,130.88,9.99116221]
[1769026503915,23.07397115,130.96,130.9,6.8812]
[1769026504321,23.07397115,130.96,130.85,117.07476221]
[1769026504634,23.07397115,130.93,130.87,6.8827]
[1769026506034,23.07397115,130.93,130.85,9.99116221]
[1769026507933,23.07397115,130.96,130.86,9.95457371]
[1769026508135,23.07397115,130.96,130.89,9.95457371]
[1769026509634,23.07397115,130.96,130.91,6.8807]
[1769026510228,23.07397115,130.96,130.89,6.8814]
[1769026510430,23.07397115,130.96,130.88,107.0561]
[1769026511435,23.07397115,130.96,130.91,6.8806]
[1769026511636,23.07397115,130.99,130.91,6.8806]
[1769026512132,23.07397115,130.96,130.84,117.00873749]
[1769026512326,23.07397115,130.95,130.86,9.91963749]
[1769026512727,23.07397115,130.95,130.86,6.883]
[1769026513127,23.07397115,130.92,130.86,6.883]
[1769026514438,23.07397115,130.9,130.84,6.884]
[1769026514743,23.07397115,130.9,130.82,116.99997461]
[1769026515131,23.07397115,130.9,130.86,6.8832]
[1769026515333,23.07397115,130.93,130.86,6.8832]
[1769026515632,23.07397115,130.93,130.83,107.0968]
[1769026515633,23.07397115,130.93,130.84,116.94719049]
[1769026515832,23.07397115,130.93,130.88,6.8822]
[1769026516028,6.12261445,130.97,130.88,6.8822]
[1769026516233,24.97068418,130.96,130.88,6.8822]
[1769026517029,24.97068418,130.94,130.88,6.8822]
[1769026519831,24.97068418,130.97,130.88,9.81892443]
[1769026521037,24.97068418,130.96,130.9,6.8812]
[1769026521832,24.97068418,130.96,130.91,6.8807]
[1769026522035,24.97068418,130.95,130.87,107.0647]
[1769026522844,24.97068418,130.95,130.9,6.8812]
[1769026524440,24.97068418,130.95,130.91,6.8807]
[1769026525036,24.97068418,130.98,130.9,116.82407904]
[1769026525231,24.97068418,130.98,130.9,9.78157904]
[1769026525638,24.97068418,130.97,130.91,6.8804]
[1769026527039,24.97068418,130.96,130.89,6.8813]
[1769026527247,24.97068418,130.96,130.88,9.76723451]
[1769026527646,6.8788,130.95,130.85,116.83998558]
[1769026527842,24.97068418,130.96,130.86,9.76018558]
[1769026528552,24.97068418,130.94,130.83,9.76018558]
[1769026529433,32.0934219,130.95,130.85,9.75321761]
[1769026529634,24.97068418,130.95,130.86,9.74632968]
[1769026530045,24.97068418,130.95,130.88,6.8823]
[1769026530046,31.84938418,130.95,130.88,6.8823]
[1769026532451,24.97068418,130.94,130.88,6.8823]
[1769026532637,24.97068418,130.93,130.86,6.8829]
[1769026533449,24.97068418,130.92,130.84,6.884]
[1769026533954,31.09329863,130.92,130.82,6.8851]
[1769026534950,24.97068418,130.9,130.82,6.8851]
[1769026536646,31.85208418,130.9,130.82,6.8851]
[1769026536856,24.97068418,130.89,130.8,16.60586006]
[1769026537148,24.97068418,130.88,130.76,116.8534792]
[1769026537352,24.97068418,130.86,130.79,6.8869]
[1769026537953,24.97068418,130.89,130.81,9.69399932]
[1769026538259,24.97068418,130.93,130.84,9.69399932]
[1769026538855,24.97068418,130.93,130.86,6.8831]
[1769026539748,24.97068418,130.93,130.87,6.8826]
[1769026540058,24.97068418,130.96,130.87,9.68165511]
[1769026540353,24.97068418,130.96,130.87,116.74605511]
[1769026540548,24.97068418,130.96,130.89,6.8816]
[1769026541353,24.97068418,130.96,130.87,6.8825]
[1769026541854,24.97068418,130.96,130.84,9.67558915]
[1769026542558,24.97068418,130.95,130.84,116.76478915]
[1769026542964,24.97068418,130.93,130.87,6.8827]
[1769026543254,24.97068418,130.93,130.81,122.89857988]
[1769026543552,24.97068418,130.92,130.82,9.66366543]
[1769026544051,24.97068418,130.92,130.79,9.6578061]
[1769026544052,24.97068418,130.89,130.79,9.6578061]
[1769026544754,24.97068418,130.87,130.79,6.8866]
[1769026544949,24.97068418,130.87,130.76,9.65201406]
[1769026545154,24.97068418,130.86,130.74,107.1714]
[1769026545350,24.97068418,130.85,130.75,9.65201406]
[1769026545947,23.46249489,130.84,130.76,6.8885]
[1769026546645,23.46249489,130.83,130.75,9.65201406]
[1769026548054,23.46249489,130.86,130.76,116.75425703]
[1769026548450,23.46249489,130.85,130.76,9.60065703]
[1769026548650,23.46249489,130.85,130.74,116.76419321]
[1769026549060,23.46249489,130.85,130.78,6.8874]
[1769026549551,23.46249489,130.85,130.77,9.59519321]
[1769026549753,23.46249489,130.88,130.79,116.71979215]
[1769026550559,23.46249489,130.88,130.79,9.58979215]
[1769026550952,23.46249489,130.88,130.76,9.58445313]
[1769026551148,23.46249489,130.86,130.77,6.8878]
[1769026551755,23.46249489,130.84,130.73,116.75697543]
[1769026552157,6.8851,130.83,130.76,6.8885]
[1769026552363,23.46249489,130.82,130.73,116.75697543]
[1769026552863,23.46249489,130.82,130.76,6.8885]
[1769026553461,23.46249489,130.84,130.76,6.8885]
[1769026553661,23.46249489,130.84,130.77,6.8878]
[1769026554452,23.46249489,130.84,130.75,9.57395835]
[1769026554651,23.46249489,130.84,130.78,6.8875]
[1769026554963,23.46249489,130.87,130.79,9.56370326]
[1769026555164,23.46249489,130.87,130.8,6.8863]
[1769026555860,23.46249489,130.87,130.81,6.8859]
[1769026556962,23.46249489,130.9,130.81,9.55368241]
[1769026557667,23.46249489,130.88,130.79,107.1292]
[1769026557864,23.46249489,130.88,130.78,9.54875814]
[1769026558068,23.46249489,130.88,130.76,107.1514]
[1769026558263,23.46249489,130.88,130.76,116.70015814]
[1769026558666,23.46249489,130.88,130.53,17.92887515]
[1769026558667,23.46249489,130.83,130.71,107.191]
[1769026558857,23.46249489,130.83,130.71,116.73489043]
[1769026559061,23.46249489,130.83,130.72,9.54389043]
[1769026559262,31.93861761,130.82,130.74,6.8893]
[1769026559461,31.93861761,130.82,130.73,116.71857532]
[1769026559462,25.05311761,130.82,130.73,116.71857532]
[1769026559656,25.05311761,130.82,130.74,9.53281893]
[1769026559969,25.05311761,130.82,130.72,107.1859]
[1769026560173,25.05311761,130.8,130.69,116.74501893]
[1769026560377,25.05311761,130.8,130.71,116.72801893]
[1769026560568,25.05311761,130.8,130.72,116.71801717]
[1769026560869,25.05311761,130.83,130.75,9.52811717]
[1769026561273,25.05311761,130.83,130.75,116.69031717]
[1769026561573,25.05311761,130.83,130.72,9.52346942]
[1769026562272,25.05311761,130.83,130.7,107.2037]
[1769026562273,25.05311761,130.8,130.7,107.2037]
[1769026562572,25.05311761,130.8,130.71,9.52346942]
[1769026563668,25.05311761,130.83,130.73,9.51433346]
[1769026564065,107.0788,130.86,130.73,9.51433346]
[1769026564066,6.8841,130.85,130.76,6.8884]
[1769026564381,25.05311761,130.86,130.76,9.51433346]
[1769026564561,25.05311761,130.86,130.74,107.1734]
[1769026564868,25.05311761,130.83,130.73,116.68754403]
[1769026565071,25.05311761,130.83,130.73,9.50984403]
[1769026565274,25.05311761,130.81,130.74,6.8893]
[1769026565680,31.93931761,130.81,130.73,16.39994403]
[1769026566077,25.05311761,130.8,130.73,6.8901]
[1769026566381,25.05311761,130.79,130.71,6.8908]
[1769026566573,25.05311761,130.79,130.69,9.50540616]
[1769026566983,31.94091761,130.78,130.7,6.8917]
[1769026567377,31.94091761,130.78,130.69,9.50540616]
[1769026567579,25.05311761,130.78,130.69,9.50540616]
[1769026567868,107.0955,130.84,130.75,9.49668276]
[1769026567869,25.05311761,130.84,130.75,9.49668276]
[1769026568382,25.05311761,130.82,130.75,6.8888]
[1769026568880,25.05311761,130.82,130.72,9.49668276]
[1769026569075,25.05311761,130.82,130.74,6.8896]
[1769026569076,31.93871761,130.82,130.74,6.8896]
[1769026569483,25.05311761,130.81,130.72,9.49668276]
[1769026569679,25.05311761,130.78,130.72,6.8903]
[1769026569881,25.05311761,130.78,130.67,107.225]
[1769026570384,31.94191761,130.76,130.69,6.8923]
[1769026571682,25.05311761,130.76,130.7,6.8917]
[1769026572381,25.05311761,130.76,130.67,116.70782914]
[1769026572578,25.05311761,130.76,130.67,9.47982914]
[1769026573284,6.8879,130.78,130.69,9.47573602]
[1769026574372,25.05311761,130.76,130.69,6.8919]
[1769026575172,25.05311761,130.82,130.71,9.46769029]
[1769026575375,25.05311761,130.82,130.73,9.46769029]
[1769026575573,23.68196943,130.81,130.71,107.1944]
[1769026575792,23.68196943,130.81,130.71,116.66132264]
[1769026575977,23.68196943,130.81,130.73,9.46692264]
[1769026576177,319.82686943,130.84,130.74,107.1731]
[1769026576483,23.68196943,130.83,130.74,107.1731]
[1769026576682,30.56696943,130.83,130.75,6.8887]
[1769026576885,23.68196943,130.83,130.75,116.6283587]
[1769026577083,23.68196943,130.87,130.76,9.4630587]
[1769026577285,23.68196943,130.86,130.78,6.8875]
[1769026577484,23.68196943,130.86,130.76,9.4630587]
[1769026577485,23.68196943,130.86,130.77,107.1458]
[1769026577684,30.56596943,130.85,130.76,9.4630587]
[1769026577884,23.68196943,130.84,130.75,107.1653]
[1769026578079,23.68196943,130.84,130.75,116.62453915]
[1769026578277,107.047,130.9,130.75,116.62453915]
[1769026578278,23.68196943,130.91,130.81,107.1158]
[1769026578477,23.68196943,130.91,130.79,9.45923915]
[1769026578777,6.8822,130.89,130.79,9.45923915]
[1769026578984,23.68196943,130.88,130.77,107.1455]
[1769026579180,23.68196943,130.88,130.78,107.1406]
[1769026579381,23.68196943,130.87,130.79,6.8868]
[1769026579584,23.68196943,130.87,130.76,107.1537]
[1769026580080,23.68196943,130.86,130.77,6.8879]
[1769026580282,23.68196943,130.86,130.74,116.62073115]
[1769026580483,23.68196943,130.84,130.75,6.8889]
[1769026581390,23.68196943,130.84,130.71,116.64204171]
[1769026581391,23.68196943,130.82,130.71,9.44804171]
[1769026581585,23.68196943,130.81,130.69,107.2138]
[1769026581889,23.68196943,130.81,130.69,116.65819464]
[1769026582386,23.68196943,130.79,130.69,9.44439464]
[1769026582589,23.68196943,130.79,130.69,116.65659464]
[1769026582790,23.68196943,130.79,130.7,116.64658946]
[1769026583690,23.68196943,130.79,130.71,6.891]
[1769026584579,23.68196943,130.79,130.72,6.8905]
[1769026585190,23.68196943,130.79,130.73,6.89]
[1769026585390,23.68196943,130.82,130.73,6.89]
[1769026585582,23.68196943,130.82,130.75,6.889]
[1769026585784,23.68196943,130.82,130.74,116.60012048]
[1769026586398,23.68196943,130.85,130.77,6.8879]
[1769026586584,23.68196943,130.85,130.76,116.58472048]
[1769026586785,23.68196943,130.85,130.75,107.164]
[1769026587194,23.68196943,130.85,130.78,6.8873]
[1769026587879,23.68196943,130.85,130.79,6.8868]
[1769026590895,23.68196943,130.88,130.8,6.8864]
[1769026591997,23.68196943,130.88,130.81,6.8859]
[1769026592192,23.68196943,130.88,130.8,107.1237]
[1769026592502,23.68196943,130.88,130.8,116.53385032]
[1769026592698,23.68196943,130.91,130.84,6.8843]
[1769026592999,23.68196943,130.91,130.83,116.50523847]
[1769026593891,23.68196943,130.91,130.86,6.8832]
[1769026594088,106.9999,130.96,130.86,6.8832]
[1769026594288,23.68196943,130.95,130.85,107.0828]
[1769026594493,30.56076943,130.95,130.87,6.8827]
[1769026594693,30.56076943,130.95,130.84,116.48986351]
[1769026594694,23.68196943,130.94,130.84,9.40376351]
[1769026595095,30.56136943,130.94,130.85,6.8837]
[1769026595301,23.68196943,130.94,130.85,6.8837]
[1769026596902,30.56176943,130.93,130.85,6.8837]
[1769026597096,23.68196943,130.93,130.84,9.40376351]
[1769026597303,23.68196943,130.93,130.83,6.8846]
[1769026597496,6.8814,130.9,130.81,9.39445578]
[1769026597803,23.68196943,130.9,130.83,6.8847]
[1769026599302,23.68196943,130.9,130.81,9.39445578]
[1769026599501,23.68196943,130.89,130.81,16.28005578]
[1769026601194,23.68196943,130.88,130.79,6.8867]
[1769026601593,23.68196943,130.87,130.75,9.3796421]
[1769026601999,23.68196943,130.88,130.77,9.3796421]
[1769026603005,23.68196943,130.86,130.79,6.8869]
[1769026604905,30.56536943,130.86,130.79,6.8869]
[1769026605608,30.56536943,130.86,130.77,9.3796421]
[1769026605800,22.83496023,130.84,130.75,107.1626]
[1769026605998,22.83496023,130.84,130.74,116.53950235]
[1769026606906,29.71946023,130.84,130.77,6.8881]
[1769026608111,22.83496023,130.84,130.78,6.8875]
[1769026608310,22.83496023,130.84,130.75,9.36583111]
[1769026608702,22.83496023,130.87,130.77,9.36319167]
[1769026608902,22.83496023,130.87,130.79,9.36319167]
[1769026609303,29.71666023,130.9,130.81,9.36319167]
[1769026609608,22.83496023,130.94,130.83,116.46039167]
[1769026609808,29.71426023,130.94,130.87,6.8828]
[1769026610004,22.83496023,130.93,130.87,6.8828]
[1769026610206,22.83496023,130.93,130.84,9.36058255]
[1769026611704,22.83496023,130.92,130.83,6.8846]
[1769026612412,22.83496023,130.91,130.84,6.8844]
[1769026613809,22.83496023,130.94,130.84,9.35044233]
[1769026614038,22.83496023,130.94,130.85,9.35044233]
[1769026614610,22.83496023,130.94,130.82,116.45477965]
[1769026614804,29.71526023,130.92,130.85,6.8838]
[1769026615205,22.83496023,130.92,130.83,107.0984]
[1769026616116,22.83496023,130.92,130.83,116.44394525]
[1769026616312,22.83496023,130.97,130.86,116.42034525]
[1769026616519,22.83496023,130.97,130.87,9.34554525]
[1769026617619,29.71316023,130.96,130.9,6.8811]
[1769026617918,29.71316023,130.96,130.87,9.34554525]
[1769026619120,29.71316023,130.96,130.89,6.8816]
[1769026620317,29.71316023,130.96,130.87,9.34554525]
[1769026620516,6.8791,130.95,130.87,9.34554525]
[1769026620718,30.25537725,130.95,130.87,9.34554525]
[1769026620915,23.37627725,130.94,130.83,9.30588753]
[1769026621218,30.25657725,130.92,130.83,9.30588753]
[1769026621813,30.25597725,130.94,130.86,6.8833]
[1769026622212,23.37627725,130.94,130.86,6.8833]
[1769026623419,30.25657725,130.92,130.86,6.8833]
[1769026624222,23.37627725,130.92,130.86,6.8833]
[1769026624428,6.8796,130.94,130.86,16.18253217]
[1769026624614,30.25587725,130.94,130.86,16.18253217]
[1769026624819,6.8797,130.93,130.86,16.18253217]
[1769026625126,30.25597725,130.93,130.86,6.8833]
[1769026625524,23.37627725,130.96,130.87,9.2949217]
[1769026625727,23.37627725,130.96,130.88,9.2949217]
[1769026626427,23.37627725,131.0,130.9,9.2949217]
[1769026627328,30.25287725,130.99,130.92,6.88]
[1769026628026,23.37627725,130.97,130.88,107.0562]
[1769026628632,23.37627725,130.96,130.9,6.8812]
[1769026629036,23.37627725,130.99,130.9,9.28863987]
[1769026629227,30.25317725,130.99,130.92,6.8801]
[1769026629633,30.25317725,130.99,130.92,16.16669385]
[1769026629832,23.37627725,130.99,130.92,16.16669385]
[1769026631428,23.37627725,130.98,130.89,9.28457132]
[1769026631835,23.37627725,130.98,130.92,6.8801]
[1769026633436,30.25207725,131.01,130.91,9.2805957]
[1769026633827,23.37627725,131.0,130.91,9.2805957]
[1769026634321,23.37627725,130.99,130.9,9.27864207]
[1769026635132,23.37627725,130.98,130.9,6.8808]
[1769026635727,30.25347725,130.98,130.91,6.8807]
[1769026636127,23.33280012,130.97,130.91,6.8807]
[1769026636838,23.33280012,130.99,130.9,9.27753164]
[1769026637139,30.20940012,130.99,130.92,6.8802]
[1769026637438,23.33280012,130.99,130.9,9.27753164]
[1769026637828,30.20940012,130.99,130.9,9.27753164]
[1769026638226,23.33280012,130.99,130.91,9.27568742]
[1769026638430,23.33280012,130.99,130.94,6.8792]
[1769026639433,1.32930975,131.02,130.94,9.27386438]
[1769026639434,23.33280012,131.02,130.94,9.27386438]
[1769026639826,23.33280012,131.02,130.92,9.27206228]
[1769026640025,23.33280012,131.02,130.92,107.0237]
[1769026640232,23.33280012,131.02,130.93,9.27206228]
[1769026640828,30.20780012,131.02,130.95,6.8786]
[1769026641941,23.33280012,131.0,130.93,6.8792]
[1769026642136,6.11677479,130.99,130.87,116.33121995]
[1769026642337,23.33280012,130.98,130.87,116.33121995]
[1769026642648,23.33280012,130.96,130.87,9.26851995]
[1769026644045,23.33280012,130.99,130.89,116.31295852]
[1769026644234,23.33280012,130.99,130.9,107.0427]
[1769026644441,23.33280012,130.99,130.9,116.30775852]
[1769026644840,23.33280012,130.99,130.91,107.0342]
[1769026645237,23.33280012,130.99,130.91,116.29755756]
[1769026645844,23.33280012,131.02,130.94,6.8791]
[1769026646937,23.33280012,131.01,130.94,6.8791]
[1769026648545,23.33280012,131.01,130.95,6.8786]
[1769026650346,23.33280012,131.01,130.92,107.0256]
[1769026650547,30.20830012,131.01,130.92,116.2807414]
[1769026650945,23.33280012,131.01,130.95,6.8786]
[1769026651645,23.33280012,131.01,130.96,6.8781]
[1769026651846,288.9,131.03,130.94,116.25638553]
[1769026652348,23.33280012,131.03,130.98,6.877]
[1769026653741,23.33280012,131.06,130.97,9.24890175]
[1769026653937,23.33280012,131.06,130.98,116.22590175]
[1769026654137,23.33280012,131.06,130.99,116.21760175]
[1769026654337,23.33280012,131.06,130.99,9.24890175]
[1769026655346,23.33280012,131.06,131.0,6.8755]
[1769026656444,23.33280012,131.05,130.98,6.8767]
[1769026656645,23.33280012,131.05,130.96,9.24738637]
[1769026656846,23.33280012,131.04,130.97,6.8771]
[1769026657351,23.33280012,131.04,130.95,116.24250763]
[1769026658152,23.33280012,131.04,130.98,6.877]
[1769026660647,23.33280012,131.04,130.99,6.8765]
[1769026660844,23.33280012,131.07,130.97,116.2178527]
[1769026661045,23.33280012,131.07,130.98,9.2386527]
[1769026661349,23.33280012,131.07,131.01,6.8755]
[1769026661548,23.33280012,131.06,130.98,9.2386527]
[1769026662950,6.8724,131.07,131.01,6.8755]
[1769026663247,23.33280012,131.08,130.99,9.23587344]
[1769026664151,23.33280012,131.07,131.0,6.8755]
[1769026664453,23.33280012,131.07,130.99,9.23587344]
[1769026665254,30.20530012,131.07,131.01,6.8755]
[1769026665753,23.33280012,131.07,130.99,6.8761]
[1769026666056,23.33280012,131.07,130.96,9.1931416]
[1769026666242,24.60772715,131.04,130.96,9.1931416]
[1769026666653,24.60772715,131.04,130.98,6.8771]
[1769026667947,31.48162715,131.04,130.98,6.8771]
[1769026668551,24.60772715,131.04,130.98,6.8771]
[1769026668748,24.60772715,131.07,130.97,9.18927708]
[1769026669147,31.48112715,131.05,130.98,6.877]
[1769026669346,31.48112715,131.05,130.97,9.18927708]
[1769026669751,24.60772715,131.04,130.97,6.8771]
[1769026670057,24.60772715,131.03,130.97,6.8771]
[1769026670757,24.60772715,131.03,130.98,6.8769]
[1769026670952,24.60772715,131.03,130.95,9.18677415]
[1769026671146,24.60772715,131.03,130.92,116.20767415]
[1769026671847,24.60772715,131.03,130.93,9.1855442]
[1769026672249,30.72450194,131.04,130.93,9.1855442]
[1769026672454,30.72450194,131.04,130.94,9.1855442]
[1769026673157,24.60772715,131.02,130.96,6.878]
[1769026673354,24.60772715,131.02,130.94,9.1855442]
[1769026673660,24.60772715,131.0,130.89,107.0466]
[1769026673853,24.60772715,131.0,130.87,107.0628]
[1769026674069,30.72450194,130.98,130.86,116.25502652]
[1769026675160,24.60772715,130.95,130.88,6.8822]
[1769026675461,24.60772715,130.98,130.91,6.8805]
[1769026676953,24.60772715,130.98,130.92,6.88]
[1769026679666,22.56163029,130.97,130.9,6.8808]
[1769026680256,22.56163029,130.95,130.88,6.882]
[1769026681066,22.56163029,130.95,130.87,116.26885685]
[1769026681460,29.43913029,130.98,130.89,9.2051604]
[1769026681866,6.8777,130.97,130.89,16.0866604]
[1769026682061,29.43933029,130.97,130.89,9.2051604]